[Event "Early-Titled-Tuesday-Blitz-April-16-2024"]
[Site "Chess.com"]
[Date "2024.04.16"]
[Round "3"]
[White "LiemLe"]
[Black "Agibileg"]
[Result "1-0"]
[WhiteElo "3047"]
[BlackElo "2757"]
[TimeControl "180+1"]
[EndTime "8:29:24 PDT"]
[Termination "LiemLe won by resignation"]

1. Nf3 {[%clk 0:03:00.9]} 1... Nf6 {[%clk 0:02:58.5]} 2. c4 {[%clk 0:03:00.3]}
2... c5 {[%clk 0:02:57]} 3. Nc3 {[%clk 0:02:59.1]} 3... e6 {[%clk 0:02:56.7]} 4.
g3 {[%clk 0:02:58.8]} 4... b6 {[%clk 0:02:56.6]} 5. Bg2 {[%clk 0:02:58.6]} 5...
Bb7 {[%clk 0:02:56.8]} 6. O-O {[%clk 0:02:59.2]} 6... Be7 {[%clk 0:02:56]} 7. d4
{[%clk 0:02:57.9]} 7... cxd4 {[%clk 0:02:56.7]} 8. Qxd4 {[%clk 0:02:58.8]} 8...
d6 {[%clk 0:02:49.5]} 9. Bg5 {[%clk 0:02:56.3]} 9... a6 {[%clk 0:02:45.1]} 10.
Bxf6 {[%clk 0:02:56.1]} 10... Bxf6 {[%clk 0:02:44.4]} 11. Qf4 {[%clk 0:02:56.4]}
11... O-O {[%clk 0:02:40]} 12. Rfd1 {[%clk 0:02:53.4]} 12... Be7 {[%clk
0:02:38.4]} 13. Ne1 {[%clk 0:02:41.9]} 13... Bxg2 {[%clk 0:02:36.7]} 14. Nxg2
{[%clk 0:02:42.8]} 14... Qc7 {[%clk 0:02:29.7]} 15. Ne4 {[%clk 0:02:28]} 15...
Rd8 {[%clk 0:02:27.8]} 16. b4 {[%clk 0:02:18.3]} 16... Ra7 {[%clk 0:02:20.6]}
17. Ne3 {[%clk 0:02:01.7]} 17... Nc6 {[%clk 0:02:18.9]} 18. a3 {[%clk
0:01:59.8]} 18... Ne5 {[%clk 0:02:16.1]} 19. Rac1 {[%clk 0:01:58.2]} 19... h6
{[%clk 0:01:59.2]} 20. h4 {[%clk 0:01:41]} 20... Qb8 {[%clk 0:01:32.7]} 21. c5
{[%clk 0:01:35.9]} 21... bxc5 {[%clk 0:01:31.7]} 22. bxc5 {[%clk 0:01:35.6]}
22... d5 {[%clk 0:01:19.9]} 23. Nd2 {[%clk 0:01:00.8]} 23... Rc8 {[%clk
0:00:54.5]} 24. Rb1 {[%clk 0:00:56.2]} 24... Qc7 {[%clk 0:00:53.4]} 25. Rdc1
{[%clk 0:00:56.3]} 25... Ng6 {[%clk 0:00:49.8]} 26. Qa4 {[%clk 0:00:52]} 26...
Bxc5 {[%clk 0:00:41.7]} 27. Nb3 {[%clk 0:00:50.5]} 27... Qe7 {[%clk 0:00:39.1]}
28. Nxc5 {[%clk 0:00:38.7]} 28... Rxc5 {[%clk 0:00:39.7]} 29. Rb8+ {[%clk
0:00:37.5]} 29... Nf8 {[%clk 0:00:39.3]} 30. Rcb1 {[%clk 0:00:32.7]} 30... Rac7
{[%clk 0:00:36.9]} 31. Kg2 {[%clk 0:00:24.8]} 31... a5 {[%clk 0:00:31.5]} 32.
Re8 {[%clk 0:00:24.2]} 32... Qd6 {[%clk 0:00:11.7]} 33. Rbb8 {[%clk 0:00:23.9]}
33... d4 {[%clk 0:00:11.5]} 34. Rxf8+ {[%clk 0:00:24.1]} 34... Qxf8 {[%clk
0:00:11.2]} 35. Rxf8+ {[%clk 0:00:23.6]} 35... Kxf8 {[%clk 0:00:11.9]} 36. Qxd4
{[%clk 0:00:24.5]} 36... f6 {[%clk 0:00:08.4]} 37. Qd8+ {[%clk 0:00:19.7]} 37...
Kf7 {[%clk 0:00:08.5]} 38. Ng4 {[%clk 0:00:19.4]} 38... h5 {[%clk 0:00:07.6]}
39. Nh2 {[%clk 0:00:19.3]} 39... Rc3 {[%clk 0:00:06]} 40. Nf3 {[%clk 0:00:19.5]}
40... Re7 {[%clk 0:00:04.4]} 41. Qxa5 {[%clk 0:00:18.4]} 41... Rb3 {[%clk
0:00:03.1]} 42. Qxh5+ {[%clk 0:00:19]} 42... Kg8 {[%clk 0:00:02.4]} 43. Qc5
{[%clk 0:00:18.1]} 43... Reb7 {[%clk 0:00:02.1]} 44. Nd4 {[%clk 0:00:18.8]}
44... Rb2 {[%clk 0:00:01.4]} 45. Nxe6 {[%clk 0:00:19.2]} 45... Kf7 {[%clk
0:00:00.8]} 46. Nd4 {[%clk 0:00:18.4]} 1-0

[Event "Early-Titled-Tuesday-Blitz-April-16-2024"]
[Site "Chess.com"]
[Date "2024.04.16"]
[Round "3"]
[White "chess123456s"]
[Black "cthulhuuu"]
[Result "1-0"]
[WhiteElo "2603"]
[BlackElo "2423"]
[TimeControl "180+1"]
[EndTime "8:29:24 PDT"]
[Termination "chess123456s won on time"]

1. d4 {[%clk 0:03:00.9]} 1... Nf6 {[%clk 0:02:59.4]} 2. Nc3 {[%clk 0:03:01.5]}
2... d5 {[%clk 0:02:58.5]} 3. Bf4 {[%clk 0:03:02.1]} 3... c6 {[%clk 0:02:58.6]}
4. e3 {[%clk 0:03:02.6]} 4... Qb6 {[%clk 0:02:58.6]} 5. Rb1 {[%clk 0:03:02.4]}
5... g6 {[%clk 0:02:58.7]} 6. Be2 {[%clk 0:03:00]} 6... Bg7 {[%clk 0:02:58.9]}
7. h4 {[%clk 0:02:59.7]} 7... h6 {[%clk 0:02:58.3]} 8. Nf3 {[%clk 0:02:59.4]}
8... O-O {[%clk 0:02:56.2]} 9. Ne5 {[%clk 0:02:59.9]} 9... Nbd7 {[%clk
0:02:54.6]} 10. g4 {[%clk 0:02:59.3]} 10... Nxe5 {[%clk 0:02:20.4]} 11. Bxe5
{[%clk 0:02:51.9]} 11... Ne4 {[%clk 0:02:20.5]} 12. Bxg7 {[%clk 0:02:42.7]}
12... Kxg7 {[%clk 0:02:21.4]} 13. Bd3 {[%clk 0:02:35.2]} 13... Bxg4 {[%clk
0:02:02.5]} 14. Ne2 {[%clk 0:01:55.7]} 14... Qa5+ {[%clk 0:01:40.6]} 15. c3
{[%clk 0:01:55]} 15... Qxa2 {[%clk 0:01:29.7]} 16. Rg1 {[%clk 0:01:52.4]} 16...
Bf3 {[%clk 0:01:24.7]} 17. Qc2 {[%clk 0:01:51]} 17... b5 {[%clk 0:00:58.1]} 18.
Nf4 {[%clk 0:01:39.5]} 18... a5 {[%clk 0:00:47.1]} 19. Be2 {[%clk 0:01:23.9]}
19... Bxe2 {[%clk 0:00:46]} 20. Kxe2 {[%clk 0:01:23.1]} 20... b4 {[%clk
0:00:43.5]} 21. f3 {[%clk 0:00:47.8]} 21... Qc4+ {[%clk 0:00:22.7]} 22. Ke1
{[%clk 0:00:38.8]} 22... b3 {[%clk 0:00:22.5]} 23. Qg2 {[%clk 0:00:31.6]} 23...
Nxc3 {[%clk 0:00:09.1]} 24. bxc3 {[%clk 0:00:23.6]} 24... Qxc3+ {[%clk
0:00:09.1]} 25. Qd2 {[%clk 0:00:24.2]} 25... Qxd2+ {[%clk 0:00:08.9]} 26. Kxd2
{[%clk 0:00:25.1]} 26... a4 {[%clk 0:00:09.2]} 27. h5 {[%clk 0:00:21.7]} 27...
g5 {[%clk 0:00:09.1]} 28. Nd3 {[%clk 0:00:22.4]} 28... Rfb8 {[%clk 0:00:09.5]}
29. Nc5 {[%clk 0:00:21.6]} 29... Rb4 {[%clk 0:00:07.3]} 30. Nd3 {[%clk
0:00:12.7]} 30... Rc4 {[%clk 0:00:07.1]} 31. Ne5 {[%clk 0:00:11.7]} 31... Rc2+
{[%clk 0:00:07.3]} 32. Kd3 {[%clk 0:00:12.4]} 32... Rh2 {[%clk 0:00:05.8]} 33.
Ra1 {[%clk 0:00:10.1]} 33... a3 {[%clk 0:00:05.9]} 34. Rgb1 {[%clk 0:00:09.8]}
34... a2 {[%clk 0:00:03.6]} 35. Rxb3 {[%clk 0:00:09.6]} 35... c5 {[%clk
0:00:02.4]} 36. dxc5 {[%clk 0:00:09.4]} 36... Kf6 {[%clk 0:00:02.5]} 37. Nd7+
{[%clk 0:00:09.3]} 37... Kf5 {[%clk 0:00:03]} 38. c6 {[%clk 0:00:09]} 38... Rc8
{[%clk 0:00:03.1]} 39. Rc3 {[%clk 0:00:09.1]} 39... Ke6 {[%clk 0:00:02.7]} 40.
Nb6 {[%clk 0:00:09.5]} 40... Rc7 {[%clk 0:00:02.9]} 41. Na8 {[%clk 0:00:10.1]}
41... Rc8 {[%clk 0:00:03.3]} 42. c7 {[%clk 0:00:10.7]} 42... Kd7 {[%clk
0:00:03.3]} 43. Nb6+ {[%clk 0:00:10.9]} 1-0

[Event "Early-Titled-Tuesday-Blitz-April-16-2024"]
[Site "Chess.com"]
[Date "2024.04.16"]
[Round "3"]
[White "SHIVACalypso"]
[Black "Tagir45"]
[Result "0-1"]
[WhiteElo "2461"]
[BlackElo "2631"]
[TimeControl "180+1"]
[EndTime "8:29:26 PDT"]
[Termination "Tagir45 won on time"]

1. d4 {[%clk 0:03:00.9]} 1... Nf6 {[%clk 0:02:56.6]} 2. c4 {[%clk 0:03:00.9]}
2... e6 {[%clk 0:02:55.3]} 3. Nc3 {[%clk 0:03:00.4]} 3... Bb4 {[%clk 0:02:55]}
4. Qc2 {[%clk 0:02:58.9]} 4... O-O {[%clk 0:02:54.3]} 5. Nf3 {[%clk 0:02:57.1]}
5... b6 {[%clk 0:02:46.1]} 6. Bd2 {[%clk 0:02:54.9]} 6... Bb7 {[%clk 0:02:44.9]}
7. e3 {[%clk 0:02:54.5]} 7... c5 {[%clk 0:02:21.8]} 8. Bd3 {[%clk 0:02:37.3]}
8... Bxf3 {[%clk 0:02:16.7]} 9. gxf3 {[%clk 0:01:57.1]} 9... cxd4 {[%clk
0:02:17.6]} 10. exd4 {[%clk 0:01:55.5]} 10... Nc6 {[%clk 0:02:17.4]} 11. Be3
{[%clk 0:01:49.9]} 11... d5 {[%clk 0:02:15.6]} 12. cxd5 {[%clk 0:01:31.3]} 12...
Nxd5 {[%clk 0:02:10.9]} 13. Bxh7+ {[%clk 0:01:24.8]} 13... Kh8 {[%clk
0:02:10.8]} 14. Be4 {[%clk 0:01:25.7]} 14... Rc8 {[%clk 0:01:32]} 15. a3 {[%clk
0:01:16.7]} 15... Bxc3+ {[%clk 0:01:22.2]} 16. bxc3 {[%clk 0:01:16.5]} 16... f5
{[%clk 0:01:15.7]} 17. Bd3 {[%clk 0:01:07.9]} 17... f4 {[%clk 0:01:09.9]} 18.
Bd2 {[%clk 0:01:08.1]} 18... Nxd4 {[%clk 0:01:09.9]} 19. Qd1 {[%clk 0:00:57.6]}
19... Nxc3 {[%clk 0:01:07.8]} 20. Bxc3 {[%clk 0:00:55.3]} 20... Rxc3 {[%clk
0:01:08.7]} 21. Be4 {[%clk 0:00:53.4]} 21... e5 {[%clk 0:01:01.9]} 22. O-O
{[%clk 0:00:51.4]} 22... Qh4 {[%clk 0:00:57.7]} 23. Kh1 {[%clk 0:00:45.2]} 23...
Rf6 {[%clk 0:00:45.9]} 24. Rg1 {[%clk 0:00:43.7]} 24... Qxf2 {[%clk 0:00:46.4]}
25. Rg2 {[%clk 0:00:43.9]} 25... Qe3 {[%clk 0:00:40.5]} 26. Qg1 {[%clk
0:00:35.5]} 26... Qxg1+ {[%clk 0:00:37.2]} 27. Raxg1 {[%clk 0:00:36.4]} 27...
Nxf3 {[%clk 0:00:16]} 28. Bxf3 {[%clk 0:00:25.7]} 28... Rxf3 {[%clk 0:00:16.9]}
29. Rxg7 {[%clk 0:00:26.5]} 29... Rg3 {[%clk 0:00:16.8]} 30. hxg3 {[%clk
0:00:15.1]} 30... Kxg7 {[%clk 0:00:16.6]} 31. gxf4+ {[%clk 0:00:15.3]} 31... Rg6
{[%clk 0:00:14.6]} 32. Re1 {[%clk 0:00:06.8]} 32... exf4 {[%clk 0:00:14.3]} 33.
Re7+ {[%clk 0:00:06.6]} 33... Kf6 {[%clk 0:00:13.7]} 34. Rxa7 {[%clk 0:00:07.5]}
34... f3 {[%clk 0:00:13.3]} 35. Ra8 {[%clk 0:00:06.5]} 35... Ke7 {[%clk
0:00:11.9]} 36. Ra7+ {[%clk 0:00:05.7]} 36... Ke6 {[%clk 0:00:12]} 37. Ra6
{[%clk 0:00:04.8]} 37... f2 {[%clk 0:00:06.8]} 38. Rxb6+ {[%clk 0:00:04.8]}
38... Kd5 {[%clk 0:00:04.5]} 39. Rb1 {[%clk 0:00:04]} 39... Ke4 {[%clk
0:00:01.9]} 40. a4 {[%clk 0:00:02]} 40... Kd3 {[%clk 0:00:01.3]} 41. a5 {[%clk
0:00:01.9]} 41... Rf6 {[%clk 0:00:01.2]} 0-1

[Event "Early-Titled-Tuesday-Blitz-April-16-2024"]
[Site "Chess.com"]
[Date "2024.04.16"]
[Round "3"]
[White "BashirliSaadat"]
[Black "lefonghua"]
[Result "0-1"]
[WhiteElo "2346"]
[BlackElo "2581"]
[TimeControl "180+1"]
[EndTime "8:29:26 PDT"]
[Termination "lefonghua won by resignation"]

1. d4 {[%clk 0:03:00.9]} 1... Nf6 {[%clk 0:02:59.9]} 2. e3 {[%clk 0:03:00.3]}
2... g6 {[%clk 0:03:00]} 3. f4 {[%clk 0:03:00]} 3... Bg7 {[%clk 0:03:00.9]} 4.
Bd3 {[%clk 0:03:00.1]} 4... O-O {[%clk 0:03:01.8]} 5. Nf3 {[%clk 0:03:00.3]}
5... d6 {[%clk 0:03:02.5]} 6. O-O {[%clk 0:02:59]} 6... c5 {[%clk 0:03:03.2]} 7.
c3 {[%clk 0:02:59.3]} 7... Nc6 {[%clk 0:03:03.7]} 8. Nbd2 {[%clk 0:02:59.5]}
8... cxd4 {[%clk 0:03:00.8]} 9. exd4 {[%clk 0:02:58.6]} 9... e5 {[%clk
0:03:01.2]} 10. fxe5 {[%clk 0:02:53.8]} 10... dxe5 {[%clk 0:03:02.1]} 11. dxe5
{[%clk 0:02:50.1]} 11... Ng4 {[%clk 0:02:48.4]} 12. Qe2 {[%clk 0:02:46.3]} 12...
Ngxe5 {[%clk 0:02:42]} 13. Be4 {[%clk 0:02:40.8]} 13... Re8 {[%clk 0:02:37.1]}
14. Nxe5 {[%clk 0:02:36.4]} 14... Nxe5 {[%clk 0:02:32.9]} 15. Nb3 {[%clk
0:02:30.7]} 15... Be6 {[%clk 0:02:09.4]} 16. Qc2 {[%clk 0:02:22.2]} 16... f5
{[%clk 0:02:04.6]} 17. Bf3 {[%clk 0:02:11.1]} 17... Bc4 {[%clk 0:01:59.1]} 18.
Rd1 {[%clk 0:01:48.3]} 18... Nxf3+ {[%clk 0:01:50.1]} 19. gxf3 {[%clk
0:01:47.7]} 19... Qh4 {[%clk 0:01:39.3]} 20. Qf2 {[%clk 0:01:38.5]} 20... Qxf2+
{[%clk 0:01:30.9]} 21. Kxf2 {[%clk 0:01:37.6]} 21... Re2+ {[%clk 0:01:31.2]} 22.
Kg1 {[%clk 0:01:32.7]} 22... Be5 {[%clk 0:01:12.5]} 23. f4 {[%clk 0:01:25.6]}
23... Bc7 {[%clk 0:01:10.6]} 24. Nd4 {[%clk 0:01:22.9]} 24... Re4 {[%clk
0:01:08.7]} 25. b3 {[%clk 0:01:19.7]} 25... Bf7 {[%clk 0:01:00.3]} 26. Rf1
{[%clk 0:01:10.7]} 26... Bb6 {[%clk 0:00:56.4]} 27. Bb2 {[%clk 0:01:07.3]} 27...
Rae8 {[%clk 0:00:52.5]} 28. Rad1 {[%clk 0:01:03.9]} 28... Re2 {[%clk 0:00:41.9]}
29. Rf2 {[%clk 0:01:02.8]} 29... R2e4 {[%clk 0:00:36]} 30. Kf1 {[%clk
0:00:54.7]} 30... a6 {[%clk 0:00:34.8]} 31. Rf3 {[%clk 0:00:45.8]} 31... Bc7
{[%clk 0:00:32.9]} 32. Bc1 {[%clk 0:00:43.1]} 32... b5 {[%clk 0:00:32]} 33. h3
{[%clk 0:00:40]} 33... Rd8 {[%clk 0:00:26.8]} 34. Re1 {[%clk 0:00:33.3]} 34...
b4 {[%clk 0:00:21.7]} 35. Rxe4 {[%clk 0:00:21.3]} 35... fxe4 {[%clk 0:00:22.6]}
36. Rg3 {[%clk 0:00:21.5]} 36... bxc3 {[%clk 0:00:21.2]} 37. Rxc3 {[%clk
0:00:17.2]} 37... Ba5 {[%clk 0:00:18.2]} 38. Nc6 {[%clk 0:00:14.6]} 38... Bxc3
{[%clk 0:00:17.8]} 39. Ke2 {[%clk 0:00:15]} 39... Re8 {[%clk 0:00:16.1]} 40. Ba3
{[%clk 0:00:13.9]} 40... Bf6 {[%clk 0:00:16]} 41. Ke3 {[%clk 0:00:13.4]} 41...
Bd5 {[%clk 0:00:15.6]} 42. Nb4 {[%clk 0:00:13.5]} 42... Bb7 {[%clk 0:00:16]} 43.
Nc2 {[%clk 0:00:13]} 43... Be7 {[%clk 0:00:16]} 44. Bb2 {[%clk 0:00:12.6]} 44...
Bc5+ {[%clk 0:00:16.3]} 45. Ke2 {[%clk 0:00:13.1]} 45... e3 {[%clk 0:00:16.2]}
46. b4 {[%clk 0:00:13.6]} 46... Bb6 {[%clk 0:00:16.7]} 47. a4 {[%clk 0:00:13.3]}
47... Bd5 {[%clk 0:00:17.1]} 48. a5 {[%clk 0:00:13.3]} 48... Bc4+ {[%clk
0:00:17.6]} 49. Ke1 {[%clk 0:00:13.2]} 49... Ba7 {[%clk 0:00:18]} 50. Na3 {[%clk
0:00:13]} 50... Bd3 {[%clk 0:00:17.7]} 51. Be5 {[%clk 0:00:13.1]} 51... e2
{[%clk 0:00:16.5]} 52. Kd2 {[%clk 0:00:11.6]} 52... Bf2 {[%clk 0:00:15.9]} 53.
Nc2 {[%clk 0:00:10.4]} 53... Bxc2 {[%clk 0:00:15.6]} 54. Kxe2 {[%clk 0:00:11]}
54... Bd4 {[%clk 0:00:16]} 55. Kd2 {[%clk 0:00:10.8]} 55... Bxe5 {[%clk
0:00:16.6]} 56. fxe5 {[%clk 0:00:11.3]} 56... Ba4 {[%clk 0:00:17.2]} 57. Kc3
{[%clk 0:00:11.1]} 57... Rxe5 {[%clk 0:00:17.5]} 0-1

[Event "Early-Titled-Tuesday-Blitz-April-16-2024"]
[Site "Chess.com"]
[Date "2024.04.16"]
[Round "3"]
[White "Root_21"]
[Black "RobertoJBM"]
[Result "1/2-1/2"]
[WhiteElo "2621"]
[BlackElo "2909"]
[TimeControl "180+1"]
[EndTime "8:29:28 PDT"]
[Termination "Game drawn by repetition"]

1. e4 {[%clk 0:03:00.9]} 1... c6 {[%clk 0:02:59.1]} 2. d4 {[%clk 0:03:00.1]}
2... d5 {[%clk 0:02:58.6]} 3. Nc3 {[%clk 0:03:00.7]} 3... dxe4 {[%clk
0:02:58.4]} 4. Nxe4 {[%clk 0:03:01.6]} 4... Nd7 {[%clk 0:02:57.8]} 5. Nf3 {[%clk
0:02:58.9]} 5... Ngf6 {[%clk 0:02:56.5]} 6. Bd3 {[%clk 0:02:54.9]} 6... Nxe4
{[%clk 0:02:55.8]} 7. Bxe4 {[%clk 0:02:55.3]} 7... Nf6 {[%clk 0:02:56.2]} 8. Bd3
{[%clk 0:02:55.2]} 8... Bg4 {[%clk 0:02:54.1]} 9. c3 {[%clk 0:02:51.6]} 9... Qd5
{[%clk 0:02:53.4]} 10. O-O {[%clk 0:02:40.3]} 10... Bxf3 {[%clk 0:02:51.8]} 11.
Qxf3 {[%clk 0:02:39.9]} 11... Qxf3 {[%clk 0:02:51.6]} 12. gxf3 {[%clk
0:02:40.8]} 12... e6 {[%clk 0:02:51.2]} 13. Bg5 {[%clk 0:02:34.8]} 13... Be7
{[%clk 0:02:49.6]} 14. Rfe1 {[%clk 0:02:30.4]} 14... g6 {[%clk 0:02:45.5]} 15.
a3 {[%clk 0:02:23.9]} 15... O-O-O {[%clk 0:02:36.1]} 16. Re2 {[%clk 0:02:20.6]}
16... Nd5 {[%clk 0:02:35.8]} 17. Bd2 {[%clk 0:02:20.1]} 17... Bd6 {[%clk
0:02:34.7]} 18. c4 {[%clk 0:02:16.1]} 18... Nf4 {[%clk 0:02:33.4]} 19. Bxf4
{[%clk 0:02:16.3]} 19... Bxf4 {[%clk 0:02:34.3]} 20. Re4 {[%clk 0:02:17]} 20...
Bg5 {[%clk 0:02:29.6]} 21. Rd1 {[%clk 0:02:13.4]} 21... Rd7 {[%clk 0:02:27]} 22.
Bf1 {[%clk 0:02:09.1]} 22... Rhd8 {[%clk 0:02:25.8]} 23. Bh3 {[%clk 0:01:35]}
23... Kc7 {[%clk 0:02:13.6]} 24. b4 {[%clk 0:01:12.3]} 24... h5 {[%clk
0:02:00.8]} 25. b5 {[%clk 0:01:09.9]} 25... cxb5 {[%clk 0:01:58.6]} 26. cxb5
{[%clk 0:01:10.2]} 26... Rd5 {[%clk 0:01:41.2]} 27. a4 {[%clk 0:01:08.7]} 27...
Kb6 {[%clk 0:01:37.4]} 28. Bf1 {[%clk 0:01:02.9]} 28... R8d7 {[%clk 0:01:35.3]}
29. Bc4 {[%clk 0:01:00]} 29... R5d6 {[%clk 0:01:32.9]} 30. Bb3 {[%clk
0:00:59.3]} 30... Bf6 {[%clk 0:01:29.9]} 31. Rf4 {[%clk 0:00:52.5]} 31... Bxd4
{[%clk 0:01:25.2]} 32. Kf1 {[%clk 0:00:52.9]} 32... e5 {[%clk 0:01:18.5]} 33.
Rxf7 {[%clk 0:00:52.3]} 33... Ka5 {[%clk 0:01:12.2]} 34. Rxd7 {[%clk 0:00:49.7]}
34... Rxd7 {[%clk 0:01:13.1]} 35. Ke2 {[%clk 0:00:49.8]} 35... Rc7 {[%clk
0:01:08.5]} 36. Rg1 {[%clk 0:00:30.7]} 36... Rc3 {[%clk 0:01:03]} 37. Bd5 {[%clk
0:00:29.1]} 37... Rc2+ {[%clk 0:01:00.5]} 38. Kd3 {[%clk 0:00:28.3]} 38... Rxf2
{[%clk 0:01:00.1]} 39. Rxg6 {[%clk 0:00:19.8]} 39... Rxh2 {[%clk 0:00:54]} 40.
Bxb7 {[%clk 0:00:19.9]} 40... Kxa4 {[%clk 0:00:51.9]} 41. Bc6 {[%clk 0:00:20.5]}
41... Kb4 {[%clk 0:00:51.5]} 42. Rh6 {[%clk 0:00:19.6]} 42... h4 {[%clk
0:00:48]} 43. f4 {[%clk 0:00:16.9]} 43... Rh3+ {[%clk 0:00:47.2]} 44. Ke4 {[%clk
0:00:17.1]} 44... Re3+ {[%clk 0:00:47.2]} 45. Kd5 {[%clk 0:00:17.1]} 45... Bc3
{[%clk 0:00:40.1]} 46. Rxh4 {[%clk 0:00:16.2]} 46... exf4 {[%clk 0:00:36.7]} 47.
Rxf4+ {[%clk 0:00:16.1]} 47... Kb3 {[%clk 0:00:29]} 48. Re4 {[%clk 0:00:16.5]}
48... Rd3+ {[%clk 0:00:18.2]} 49. Ke6 {[%clk 0:00:16.7]} 49... Bb4 {[%clk
0:00:18]} 50. Rg4 {[%clk 0:00:16.3]} 50... Rd6+ {[%clk 0:00:14.2]} 51. Ke5
{[%clk 0:00:16.1]} 51... Rd8 {[%clk 0:00:12]} 52. Ke6 {[%clk 0:00:14.5]} 52...
Rd6+ {[%clk 0:00:11.5]} 53. Ke5 {[%clk 0:00:14.9]} 53... Rd8 {[%clk 0:00:11.8]}
54. Ke6 {[%clk 0:00:15.5]} 54... Rd6+ {[%clk 0:00:11.8]} 1/2-1/2

[Event "Early-Titled-Tuesday-Blitz-April-16-2024"]
[Site "Chess.com"]
[Date "2024.04.16"]
[Round "3"]
[White "ChessRespected"]
[Black "dvglko"]
[Result "0-1"]
[WhiteElo "2613"]
[BlackElo "2475"]
[TimeControl "180+1"]
[EndTime "8:29:30 PDT"]
[Termination "dvglko won on time"]

1. d4 {[%clk 0:03:00.9]} 1... d5 {[%clk 0:02:58.2]} 2. Nf3 {[%clk 0:03:01]} 2...
Nf6 {[%clk 0:02:53.3]} 3. e3 {[%clk 0:03:01.1]} 3... Bg4 {[%clk 0:02:49.2]} 4.
c4 {[%clk 0:03:00.8]} 4... c6 {[%clk 0:02:49.2]} 5. Nc3 {[%clk 0:03:00.8]} 5...
e6 {[%clk 0:02:44.7]} 6. h3 {[%clk 0:03:00.8]} 6... Bxf3 {[%clk 0:02:30.9]} 7.
Qxf3 {[%clk 0:03:01.7]} 7... Bb4 {[%clk 0:02:29.1]} 8. Bd2 {[%clk 0:02:58.9]}
8... O-O {[%clk 0:02:28.7]} 9. a3 {[%clk 0:02:57.5]} 9... Bxc3 {[%clk
0:02:26.5]} 10. Bxc3 {[%clk 0:02:58.4]} 10... Ne4 {[%clk 0:02:27.2]} 11. Rc1
{[%clk 0:02:57.5]} 11... f5 {[%clk 0:02:25]} 12. Bb4 {[%clk 0:02:54.3]} 12...
Rf7 {[%clk 0:02:07.4]} 13. Bd3 {[%clk 0:02:48.5]} 13... a5 {[%clk 0:02:06.7]}
14. Bc3 {[%clk 0:02:32.9]} 14... Qh4 {[%clk 0:02:02.5]} 15. Qf4 {[%clk
0:02:18.3]} 15... Qd8 {[%clk 0:01:11.1]} 16. cxd5 {[%clk 0:02:11.8]} 16... exd5
{[%clk 0:01:09.2]} 17. f3 {[%clk 0:02:03.4]} 17... g5 {[%clk 0:00:50.9]} 18. Qe5
{[%clk 0:01:47.3]} 18... Nd7 {[%clk 0:00:46.3]} 19. Qe6 {[%clk 0:01:41.3]} 19...
Nxc3 {[%clk 0:00:19.6]} 20. Rxc3 {[%clk 0:01:42.2]} 20... Qf8 {[%clk 0:00:20.3]}
21. Bxf5 {[%clk 0:01:33]} 21... Re8 {[%clk 0:00:20.8]} 22. Qxd7 {[%clk
0:01:32.9]} 22... Rxd7 {[%clk 0:00:19.7]} 23. Bxd7 {[%clk 0:01:33.8]} 23... Re7
{[%clk 0:00:16.2]} 24. Bg4 {[%clk 0:01:30]} 24... Qf4 {[%clk 0:00:15]} 25. Kf2
{[%clk 0:01:27.9]} 25... Qf7 {[%clk 0:00:14.5]} 26. Re1 {[%clk 0:01:24.3]} 26...
h5 {[%clk 0:00:15.1]} 27. Bc8 {[%clk 0:01:24.4]} 27... Re8 {[%clk 0:00:13.9]}
28. Bg4 {[%clk 0:01:09.8]} 28... hxg4 {[%clk 0:00:13.8]} 29. hxg4 {[%clk
0:01:10.7]} 29... Kg7 {[%clk 0:00:14.2]} 30. b4 {[%clk 0:01:07.9]} 30... axb4
{[%clk 0:00:13.5]} 31. axb4 {[%clk 0:01:08.8]} 31... Qe7 {[%clk 0:00:14.2]} 32.
b5 {[%clk 0:01:07.4]} 32... Qb4 {[%clk 0:00:10.3]} 33. Rcc1 {[%clk 0:01:03.1]}
33... Qd2+ {[%clk 0:00:09.5]} 34. Kg3 {[%clk 0:00:59]} 34... Rxe3 {[%clk
0:00:09.2]} 35. Red1 {[%clk 0:00:57.9]} 35... Qb2 {[%clk 0:00:03.5]} 36. bxc6
{[%clk 0:00:57.5]} 36... bxc6 {[%clk 0:00:04.4]} 37. Rxc6 {[%clk 0:00:57.4]}
37... Re2 {[%clk 0:00:05]} 38. Rc7+ {[%clk 0:00:52.2]} 38... Kf6 {[%clk
0:00:04.6]} 39. Rg1 {[%clk 0:00:51.8]} 39... Qb8 {[%clk 0:00:04.6]} 40. Rc1
{[%clk 0:00:49.7]} 40... Re7 {[%clk 0:00:05]} 41. f4 {[%clk 0:00:21.8]} 41...
gxf4+ {[%clk 0:00:04.8]} 42. Kh4 {[%clk 0:00:20.2]} 42... Rxc7 {[%clk
0:00:05.7]} 43. g5+ {[%clk 0:00:17.8]} 43... Kf5 {[%clk 0:00:05.2]} 44. g4+
{[%clk 0:00:07.4]} 44... fxg3 {[%clk 0:00:05]} 45. Rf1+ {[%clk 0:00:07.6]} 45...
Kg6 {[%clk 0:00:05.6]} 46. Kg4 {[%clk 0:00:07.1]} 46... Qc8+ {[%clk 0:00:05.3]}
47. Kxg3 {[%clk 0:00:05.2]} 47... Rc3+ {[%clk 0:00:06]} 48. Kf2 {[%clk
0:00:02.8]} 48... Qf5+ {[%clk 0:00:06.2]} 0-1